Workbook

Sheet Budget 2013-14
E1: SRI SAI SEVA SADAN
E2: HYDERABAD
D3: Budget estimation for the Year 2013-14
C4: A scheme showing the financial commitment for 25 moderate and mild learning
C5: disability children/ adolescent of Residential and 9 Day care Students.
G6: No.of posts | H6: Salary for each post | I6: Expenditure per month
B7: A | C7: Full Time Staff
C8: Warden | G8: 1 | H8: 8500 | I8: =G8*H8 -> 8500
C9: Foster Care Father | G9: 1 | H9: 5000 | I9: =G9*H9 -> 5000
C10: Special Educator
C11: 1 Teacher for Every 6 Students | G11: 4 | H11: 9000 | I11: 36000
C12: Sr.Splecial Educator | G12: 1 | H12: 13000 | I12: 13000
C13: Resident Administrator cum Accounts | G13: 1 | H13: 10000 | I13: 10000
C14: Cook | G14: 1 | H14: 6000 | I14: 6000
C15: Helpers | G15: 2 | H15: 3000 | I15: 6000
F16: Sub Total | I16: =SUM(I8:I15) -> 84500
B18: B | C18: Part Time Staff
C19: Psychiatric Doctor | G19: 1 | H19: 10000 | I19: =G19*H19 -> 10000
C20: Speech Therapyst | G20: 1 | H20: 9000 | I20: 9000
C21: Tabala/ Key Board Master | G21: 1 | H21: 3000 | I21: 3000
F22: Sub Total | I22: =SUM(I19:I21) -> 22000
B24: C | C24: Other Recurring Expenditure
C25: Boarding Expenses at Rs.35/- Student/ Day
C26: For 30 days for 25 students | I26: =30*25*35 -> 26250
C27: Rent for 2 Floors (4,000 sq.ft.) | I27: 35000
C28: Transportation & Conveyance | I28: 800
C29: Water & Electricity Expenses | I29: 2200
C30: Telephone Expenses | I30: 700
C31: Medical Expenses | I31: 800
C32: Miscellaneous Expenses | I32: 1250
C33: Printing and Stationery | I33: 1100
I34: =SUM(I26:I33) -> 68100
B36: D | C36: Non - Recurring Expenditure
C37: Student Desk, Benches & Other Equipments | I37: 40000
I38: =SUM(I37) -> 40000
F39: SUMMARY
C40: Particulars | H40: Per Month | I40: Per Annuam
B41: A | C41: Full Time Staff | H41: =I16 -> 84500 | I41: =H41*12 -> 1014000
B42: B | C42: Part Time Staff | H42: =I22 -> 22000 | I42: =H42*12 -> 264000
B43: C | C43: Other Recurring Expenditure | H43: =I34 -> 68100 | I43: 817200
H44: =SUM(H41:H43) -> 174600 | I44: =SUM(I41:I43) -> 2095200 | J44: =250*12 -> 3000
B45: D | C45: Non - Recurring Expenditure | I45: =I38 -> 40000
C47: Total Funds required for the Year | I47: =SUM(I44:I46) -> 2135200
B49: a | C49: 80% of the funds from Asha for Educaion, USA | I49: =I47*80% -> 1708160
B50: b | C50: 20% of the funds to be organised by Sri Sai Seva Sadan | I50: =I47*20% -> 427040
I51: =SUM(I49:I50) -> 2135200
